fUSD/lending_fUSD_20250515
["ID","MTS","AMOUNT","RATE_DAILY","PERIOD"]
[361114679,1747267851007,-400.0,0.00011994,2]
[361114680,1747267851016,-400.0,0.00011994,2]
[361114681,1747267851025,-249.65350172,0.00011994,2]
[361114682,1747267851035,-400.0,0.00011994,2]
[361114683,1747267851044,-660.43,0.00011994,2]
[361114684,1747267851053,-400.0,0.00011994,2]
[361114685,1747267851062,-400.0,0.00011994,2]
[361114686,1747267851073,-400.0,0.00011994,2]
[361114687,1747267851083,-400.0,0.00011994,2]
[361114688,1747267851092,-400.0,0.00011994,2]
[361114689,1747267851102,-400.0,0.00011994,2]
[361114690,1747267851112,-400.0,0.00011994,2]
[361114691,1747267851121,-483.16,0.00011994,2]
[361114692,1747267851131,-693.96,0.00011994,2]
[361114693,1747267851140,-1462.12,0.00011994,2]
[361114694,1747267851150,-400.0,0.00011994,2]
[361114695,1747267851160,-487.92,0.00011994,2]
[361114696,1747267851169,-400.0,0.00011994,2]
[361114697,1747267851179,-637.86,0.00011994,2]
[361114698,1747267851189,-465.94,0.00011994,2]
[361114699,1747267851198,-633.19,0.00011994,2]
[361114700,1747267851207,-400.0,0.00011994,2]
[361114701,1747267851216,-400.0,0.00011994,2]
[361114702,1747267851226,-470.82,0.00011994,2]
[361114703,1747267851236,-525.9,0.00011994,2]
[361114704,1747267851246,-436.4,0.00011994,2]
[361114705,1747267851255,-400.0,0.00011994,2]
[361114706,1747267851265,-400.0,0.00011994,2]
[361114707,1747267851275,-466.9,0.00011994,2]
[361114708,1747267851284,-1090.44,0.00011994,2]
[361114709,1747267851294,-922.84,0.00011994,2]
[361114710,1747267851304,-400.0,0.00011994,2]
[361114711,1747267851313,-400.0,0.00011994,2]
[361114712,1747267851325,-400.0,0.00011994,2]
[361114713,1747267851335,-400.0,0.00011994,2]
[361114714,1747267851344,-562.6,0.00011994,2]
[361114715,1747267851354,-400.0,0.00011994,2]
[361114716,1747267851365,-400.0,0.00011994,2]
[361114717,1747267851375,-505.91,0.00011994,2]
[361114718,1747267851384,-527.99,0.00011994,2]
[361114719,1747267851394,-1164.34,0.00011994,2]
[361114720,1747267851404,-565.54,0.00011994,2]
[361114721,1747267851413,-400.0,0.00011994,2]
[361114722,1747267851422,-1683.54,0.00011994,2]
[361114723,1747267851431,-400.0,0.00011994,2]
[361114724,1747267851440,-1123.96,0.00011994,2]
[361114725,1747267851449,-545.75,0.00011994,2]
[361114726,1747267851458,-400.0,0.00011994,2]
[361114727,1747267851468,-400.0,0.00011994,2]
[361114728,1747267851477,-400.0,0.00011994,2]
[361114729,1747267851487,-400.0,0.00011994,2]
[361114730,1747267851497,-400.0,0.00011994,2]
[361114731,1747267851507,-741.04,0.00011994,2]
[361114732,1747267851517,-423.12,0.00011994,2]
[361114733,1747267851527,-599.02,0.00011994,2]
[361114734,1747267851537,-400.0,0.00011994,2]
[361114735,1747267851547,-400.0,0.00011994,2]
[361114736,1747267851557,-400.0,0.00011994,2]
[361114737,1747267851567,-643.19,0.00011994,2]
[361114738,1747267851577,-400.0,0.00011994,2]
[361114739,1747267851588,-400.0,0.00011994,2]
[361114740,1747267851599,-300.0,0.00011999,2]
[361114741,1747267851609,-300.0,0.00011999,2]
[361114742,1747267851619,-300.0,0.00011999,2]
[361114743,1747267851629,-500.0,0.00011999,2]
[361114744,1747267851639,-206673.1249498,0.00012,2]
[361114745,1747267851649,-151.0,0.00012,2]
[361114746,1747267851659,-151.0,0.00012,2]
[361114747,1747267851669,-153.840519,0.00012,2]
[361114748,1747267851679,-151.0,0.00012,2]
[361114749,1747267851689,-151.0,0.00012,2]
[361114750,1747267851702,-151.0,0.00012,2]
[361114751,1747267851715,-151.0,0.00012,2]
[361114752,1747267851730,-151.0,0.00012,2]
[361114753,1747267851743,-151.0,0.00012,2]
[361114754,1747267851755,-151.0,0.00012,2]
[361114755,1747267851766,-577.083944,0.00012,2]
[361114756,1747267851780,-577.083944,0.00012,2]
[361114757,1747267851793,-151.0,0.00012,2]
[361114758,1747267851805,-151.0,0.00012,2]
[361114759,1747267851818,-151.0,0.00012,2]
[361114760,1747267851832,-500.0,0.00012,2]
[361114761,1747267851846,-151.0,0.00012,2]
[361114762,1747267851858,-151.0,0.00012,2]
[361114763,1747267851869,-151.0,0.00012,2]
[361114764,1747267851880,-151.0,0.00012,2]
[361114765,1747267851891,-10000.0,0.00012,2]
[361114766,1747267851907,-151.0,0.00012,2]
[361114767,1747267851919,-10000.0,0.00012,2]
[361114768,1747267851932,-151.0,0.00012,2]
[361114769,1747267851945,-10000.0,0.00012,2]
[361114770,1747267851958,-151.0,0.00012,2]
[361114771,1747267851971,-151.0,0.00012,2]
[361114772,1747267851985,-153.385844,0.00012,2]
[361114773,1747267851997,-200.0,0.00012,2]
[361114774,1747267852010,-151.500119,0.00012,2]
[361114775,1747267852024,-178.738579,0.00012,2]
[361114776,1747267852036,-151.0,0.00012,2]
[361114777,1747267852048,-302.75,0.00012015,2]
[361114778,1747267852061,-305.91,0.00012015,2]
[361114779,1747267852073,-305.99,0.00012024,2]
[361114780,1747267852086,-301.91,0.00012024,2]
[361114781,1747267852099,-150.0,0.00012028,2]
[361114782,1747267852112,-300.23,0.00012057,2]
[361114783,1747267852125,-301.91,0.00012057,2]
[361114784,1747267852136,-165.8,0.00012062,2]
[361114785,1747267852149,-150.0,0.00012065,2]
[361114786,1747267852159,-150.0,0.00012066,2]
[361114787,1747267852170,-301.64,0.00012077,2]
[361114788,1747267852181,-305.7,0.00012077,2]
[361114789,1747267852194,-303.64,0.00012077,2]
[361114790,1747267852209,-305.83,0.00012077,2]
[361114791,1747267852220,-304.91,0.00012077,2]
[361114792,1747267852231,-300.39,0.00012077,2]
[361114793,1747267852242,-305.8,0.00012077,2]
[361114794,1747267852253,-302.17,0.00012077,2]
[361114795,1747267852265,-300.17,0.00012077,2]
[361114796,1747267852278,-303.47,0.00012077,2]
[361114797,1747267852291,-303.79,0.00012077,2]
[361114798,1747267852302,-304.4,0.00012077,2]
[361114799,1747267852313,-302.2,0.00012077,2]
[361114800,1747267852324,-150.0,0.00012089,2]
[361114801,1747267852336,-150.0,0.00012095,2]
[361114802,1747267852347,-300.12,0.000121,2]
[361114803,1747267852358,-150.0,0.00012126,2]
[361114804,1747267852370,-302.83,0.00012126,2]
[361114805,1747267852381,-303.96,0.00012126,2]
[361114806,1747267852392,-302.9,0.00012126,2]
[361114807,1747267852404,-305.02,0.00012126,2]
[361114808,1747267852415,-302.98,0.00012126,2]
[361114809,1747267852427,-304.27,0.00012126,2]
[361114810,1747267852438,-150.0,0.00012136,2]
[361114811,1747267852449,-302.71,0.00012155,2]
[361114812,1747267852460,-150.0,0.00012158,2]
[361114813,1747267852471,-553.0,0.00012163,2]
[361114814,1747267852482,-300.7,0.00012166,2]
[361114815,1747267852493,-150.0,0.00012166,2]
[361114816,1747267852504,-400.0,0.00012167,2]
[361114817,1747267852515,-471.34,0.00012167,2]
[361114818,1747267852526,-400.0,0.00012167,2]
[361114819,1747267852538,-400.0,0.00012167,2]
[361114820,1747267852549,-546.23,0.00012167,2]
[361114821,1747267852561,-491.85,0.00012167,2]
[361114822,1747267852571,-400.0,0.00012167,2]
[361114823,1747267852586,-401.79,0.00012167,2]
[361114824,1747267852597,-701.82,0.00012167,2]
[361114825,1747267852608,-400.0,0.00012167,2]
[361114826,1747267852619,-520.79,0.00012167,2]
[361114827,1747267852630,-400.0,0.00012167,2]
[361114828,1747267852642,-400.0,0.00012167,2]
[361114829,1747267852653,-3726.25,0.00012167,2]
[361114830,1747267852663,-400.0,0.00012167,2]
[361114831,1747267852675,-400.0,0.00012167,2]
[361114832,1747267852686,-583.88,0.00012167,2]
[361114833,1747267852696,-400.0,0.00012167,2]
[361114834,1747267852707,-615.64,0.00012167,2]
[361114835,1747267852718,-420.2,0.00012167,2]
[361114836,1747267852729,-400.0,0.00012168,2]
[361114837,1747267852740,-400.0,0.00012168,2]
[361114838,1747267852751,-400.0,0.00012168,2]
[361114839,1747267852762,-400.0,0.00012168,2]
[361114840,1747267852773,-400.0,0.00012168,2]
[361114841,1747267852784,-639.95,0.00012168,2]
[361114842,1747267852794,-400.0,0.00012168,2]
[361114843,1747267852806,-400.0,0.00012168,2]
[361114844,1747267852816,-578.22,0.00012168,2]
[361114845,1747267852828,-400.0,0.00012168,2]
[361114846,1747267852839,-400.0,0.00012168,2]
[361114847,1747267852850,-400.0,0.00012168,2]
[361114848,1747267852861,-559.6,0.00012168,2]
[361114849,1747267852872,-400.0,0.00012168,2]
[361114850,1747267852883,-248.38,0.00012168,2]
[361114851,1747267852895,-400.0,0.00012168,2]
[361114852,1747267852907,-539.17,0.00012168,2]
[361114853,1747267852918,-400.0,0.00012168,2]
[361114854,1747267852929,-400.0,0.00012168,2]
[361114855,1747267852940,-437.84,0.00012168,2]
[361114856,1747267852951,-400.0,0.00012168,2]
[361114857,1747267852962,-439.94,0.00012168,2]
[361114858,1747267852973,-400.0,0.00012168,2]
[361114859,1747267852984,-400.0,0.00012168,2]
[361114860,1747267852995,-411.62,0.00012168,2]
[361114861,1747267853006,-400.0,0.00012168,2]
[361114862,1747267853017,-623.81,0.00012168,2]
[361114863,1747267853028,-400.0,0.00012168,2]
[361114864,1747267853038,-164.73439105,0.00012168,2]
[361114865,1747267853051,-400.0,0.00012168,2]
[361114866,1747267853062,-400.0,0.00012168,2]
[361114867,1747267853073,-400.0,0.00012168,2]
[361114868,1747267853084,-400.0,0.00012168,2]
[361114869,1747267853095,-1128.66,0.00012168,2]
[361114870,1747267853105,-400.0,0.00012168,2]
[361114871,1747267853116,-400.0,0.00012168,2]
[361114872,1747267853128,-400.0,0.00012168,2]
[361114873,1747267853139,-400.0,0.00012168,2]
[361114874,1747267853152,-400.0,0.00012168,2]
[361114875,1747267853163,-418.65,0.00012168,2]
[361114876,1747267853174,-400.0,0.00012168,2]
[361114877,1747267853185,-400.0,0.00012168,2]
[361114878,1747267853195,-400.0,0.00012168,2]
[361114879,1747267853206,-400.0,0.00012168,2]
[361114880,1747267853217,-400.0,0.00012168,2]
[361114881,1747267853228,-400.0,0.00012168,2]
[361114882,1747267853239,-514.41441339,0.00012168,2]
[361114883,1747267853251,-400.0,0.00012168,2]
[361114884,1747267853261,-400.0,0.00012168,2]
[361114885,1747267853272,-400.0,0.00012168,2]
[361114886,1747267853284,-400.0,0.00012168,2]
[361114887,1747267853294,-400.0,0.00012168,2]
[361114888,1747267853305,-400.0,0.00012168,2]
[361114889,1747267853316,-400.0,0.00012168,2]
[361114890,1747267853328,-400.0,0.00012168,2]
[361114891,1747267853340,-400.0,0.00012168,2]
[361114892,1747267853350,-400.0,0.00012168,2]
[361114893,1747267853361,-464.33,0.00012168,2]
[361114894,1747267853373,-400.0,0.00012168,2]
[361114895,1747267853384,-459.6225621,0.00012168,2]
[361114896,1747267853395,-400.0,0.00012168,2]
[361114897,1747267853406,-400.0,0.00012168,2]
[361114898,1747267853418,-400.0,0.00012168,2]
[361114899,1747267853429,-400.0,0.00012168,2]
[361114900,1747267853440,-400.0,0.00012168,2]
[361114901,1747267853451,-400.0,0.00012168,2]
[361114902,1747267853462,-400.00068287,0.00012168,2]
[361114903,1747267853474,-400.0,0.00012168,2]
[361114904,1747267853485,-400.0,0.00012168,2]
[361114905,1747267853499,-400.0,0.00012168,2]
[361114906,1747267853510,-400.0,0.00012168,2]
[361114907,1747267853522,-400.0,0.00012168,2]
[361114908,1747267853532,-400.0,0.00012168,2]
[361114909,1747267853543,-400.0,0.00012168,2]
[361114910,1747267853555,-400.0,0.00012168,2]
[361114911,1747267853566,-400.0,0.00012168,2]
[361114912,1747267853577,-400.0,0.00012168,2]
[361114913,1747267853587,-400.0,0.00012168,2]
[361114914,1747267853598,-400.0,0.00012168,2]
[361114915,1747267853609,-698.6,0.00012168,2]
[361114916,1747267853619,-400.0,0.00012168,2]
[361114917,1747267853631,-400.0,0.00012168,2]
[361114918,1747267853641,-664.92,0.00012168,2]
[361114919,1747267853652,-517.29,0.00012168,2]
[361114920,1747267853663,-301.32532654,0.00012168,2]
[361114921,1747267853674,-400.0,0.00012168,2]
[361114922,1747267853684,-910.14,0.00012168,2]
[361114923,1747267853695,-536.91,0.00012168,2]
[361114924,1747267853706,-400.0,0.00012168,2]
[361114925,1747267853716,-400.0,0.00012168,2]
[361114926,1747267853727,-1608.69,0.00012168,2]
[361114927,1747267853737,-400.0,0.00012168,2]
[361114928,1747267853748,-400.0,0.00012168,2]
[361114929,1747267853758,-400.0,0.00012168,2]
[361114930,1747267853769,-400.0,0.00012168,2]
[361114931,1747267853780,-571.3,0.00012168,2]
[361114932,1747267853791,-1133.32,0.00012168,2]
[361114933,1747267853802,-400.0,0.00012168,2]
[361114934,1747267853813,-400.0,0.00012168,2]
[361114935,1747267853823,-400.0,0.00012168,2]
[361114936,1747267853834,-904.36,0.00012168,2]
[361114937,1747267853845,-502.27,0.00012168,2]
[361114938,1747267853857,-431.3,0.00012168,2]
[361114939,1747267853868,-486.90245078,0.00012168,2]
[361114940,1747267853878,-400.0,0.00012168,2]
[361114941,1747267853889,-400.0,0.00012168,2]
[361114942,1747267853905,-1214.15,0.00012168,2]
[361114943,1747267853916,-1118.64,0.00012168,2]
[361114944,1747267853927,-400.0,0.00012168,2]
[361114945,1747267853939,-3819.5,0.00012168,2]
[361114946,1747267853949,-776.32,0.00012168,2]
[361114947,1747267853960,-400.0,0.00012168,2]
[361114948,1747267853971,-400.0,0.00012168,2]
[361114949,1747267853982,-400.0,0.00012168,2]
[361114950,1747267853993,-439.09,0.00012168,2]
[361114951,1747267854003,-1243.44,0.00012168,2]
[361114952,1747267854014,-400.0,0.00012168,2]
[361114953,1747267854024,-400.0,0.00012168,2]
[361114954,1747267854035,-933.24,0.00012168,2]
[361114955,1747267854047,-400.0,0.00012168,2]
[361114956,1747267854058,-400.0,0.00012168,2]
[361114957,1747267854070,-400.0,0.00012168,2]
[361114958,1747267854081,-780.42,0.00012168,2]
[361114959,1747267854092,-400.0,0.00012168,2]
[361114960,1747267854102,-400.0,0.00012168,2]
[361114961,1747267854114,-400.0,0.00012168,2]
[361114962,1747267854124,-500.0,0.00012168,2]
[361114963,1747267854136,-400.0,0.00012168,2]
[361114964,1747267854147,-540.94,0.00012168,2]
[361114965,1747267854158,-645.51,0.00012168,2]
[361114966,1747267854169,-543.4,0.00012168,2]
[361114967,1747267854180,-400.0,0.00012168,2]
[361114968,1747267854190,-400.0,0.00012168,2]
[361114969,1747267854201,-850.61,0.00012168,2]
[361114970,1747267854212,-452.87,0.00012168,2]
[361114971,1747267854224,-4182.82,0.00012168,2]
[361114972,1747267854236,-400.0,0.00012168,2]
[361114973,1747267854246,-400.0,0.00012168,2]
[361114974,1747267854256,-365.32639265,0.00012168,2]
[361114975,1747267854266,-1918.33,0.00012168,2]
[361114976,1747267854277,-757.06,0.00012168,2]
[361114977,1747267854287,-1655.63,0.00012168,2]
[361114978,1747267854296,-611.33,0.00012168,2]
[361114979,1747267854306,-400.0,0.00012168,2]
[361114980,1747267854315,-400.0,0.00012168,2]
[361114981,1747267854669,-1413.76,0.00012168,2]
[361114982,1747267854695,-548.81,0.00012168,2]
[361114983,1747267854707,-2663.04,0.00012168,2]
[361114984,1747267854716,-795.1,0.00012168,2]
[361114985,1747267854726,-1000.0,0.00012168,2]
[361114986,1747267854735,-400.0,0.00012168,2]
[361114987,1747267854743,-437.24,0.00012168,2]
[361114988,1747267854752,-572.31,0.00012168,2]
[361114989,1747267854761,-400.0,0.00012168,2]
[361114990,1747267854771,-400.0,0.00012168,2]
[361114991,1747267854781,-1052.29,0.00012168,2]
[361114992,1747267854792,-400.0,0.00012168,2]
[361114993,1747267854801,-2820.53,0.00012168,2]
[361114994,1747267854810,-400.0,0.00012168,2]
[361114995,1747267854821,-2143.37,0.00012168,2]
[361114996,1747267854830,-502.95,0.00012168,2]
[361114997,1747267854840,-843.02,0.00012168,2]
[361114998,1747267854850,-445.13361768,0.00012168,2]
[361114999,1747267854860,-4595.27,0.00012168,2]
[361115000,1747267854869,-400.0,0.00012168,2]
[361115001,1747267854878,-400.0,0.00012168,2]
[361115002,1747267854888,-401.02,0.00012168,2]
[361115003,1747267854898,-15580.69,0.00012168,2]
[361115004,1747267854908,-400.0,0.00012168,2]
[361115005,1747267854918,-464.73,0.00012168,2]
[361115006,1747267854928,-693.85,0.00012168,2]
[361115007,1747267854939,-400.0,0.00012168,2]
[361115008,1747267854948,-400.0,0.00012168,2]
[361115009,1747267854958,-5084.84,0.00012168,2]
[361115010,1747267854967,-400.0,0.00012168,2]
[361115011,1747267854978,-400.0,0.00012168,2]
[361115012,1747267854987,-2197.67,0.00012169,2]
[361115013,1747267854996,-400.0,0.00012169,2]
[361115014,1747267855006,-400.0,0.00012169,2]
[361115015,1747267855015,-400.0,0.00012169,2]
[361115016,1747267855024,-8146.39,0.00012169,2]
[361115017,1747267855033,-400.0,0.00012169,2]
[361115018,1747267855042,-1945.27,0.00012169,2]
[361115019,1747267855051,-400.0,0.00012169,2]
[361115020,1747267855060,-709.14,0.00012169,2]
[361115021,1747267855069,-400.0,0.00012169,2]
[361115022,1747267855079,-400.0,0.00012169,2]
[361115023,1747267855089,-1481.39,0.00012169,2]
[361115024,1747267855099,-897.03,0.00012169,2]
[361115025,1747267855108,-522.25,0.00012169,2]
[361115026,1747267855119,-302.02,0.00012174,2]
[361115027,1747267855129,-301.06,0.00012175,2]
[361115028,1747267855138,-305.53,0.00012175,2]
[361115029,1747267855148,-305.04,0.00012175,2]
[361115030,1747267855157,-302.25,0.00012175,2]
[361115031,1747267855167,-304.22,0.00012175,2]
[361115032,1747267855176,-303.37,0.00012175,2]
[361115033,1747267855185,-305.08,0.00012175,2]
[361115034,1747267855195,-305.61,0.00012175,2]
[361115035,1747267855204,-305.79,0.00012175,2]
[361115036,1747267855214,-301.48,0.00012175,2]
[361115037,1747267855223,-304.13,0.00012175,2]
[361115038,1747267855232,-300.79,0.00012175,2]
[361115039,1747267855241,-303.22,0.00012175,2]
[361115040,1747267855251,-305.66,0.00012175,2]
[361115041,1747267855260,-301.51,0.00012175,2]
[361115042,1747267855270,-302.82,0.00012175,2]
[361115043,1747267855279,-302.83,0.00012176,2]
[361115044,1747267855290,-250.0,0.00012185,2]
[361115045,1747267855300,-150.0,0.00012206,2]
[361115046,1747267855310,-150.0,0.00012235,2]
[361115047,1747267855321,-150.0,0.00012238,2]
[361115048,1747267855331,-442.22,0.00012265,2]
[361115049,1747267855340,-400.0,0.00012265,2]
[361115050,1747267855350,-451.81,0.00012265,2]
[361115051,1747267855360,-2363.01,0.00012265,2]
[361115052,1747267855369,-3569.66,0.00012265,2]
[361115053,1747267855379,-400.0,0.00012265,2]
[361115054,1747267855388,-460.93,0.00012265,2]
[361115055,1747267855398,-400.0,0.00012265,2]
[361115056,1747267855407,-400.0,0.00012265,2]
[361115057,1747267855417,-766.01,0.00012265,2]
[361115058,1747267855426,-400.0,0.00012265,2]
[361115059,1747267855435,-400.0,0.00012266,2]
[361115060,1747267855445,-10074.975236,0.00012266,2]
[361115061,1747267855455,-400.0,0.00012266,2]
[361115062,1747267855465,-400.0,0.00012266,2]
[361115063,1747267855474,-400.0,0.00012266,2]
[361115064,1747267855484,-400.0,0.00012266,2]
[361115065,1747267855493,-1463.78,0.00012266,2]
[361115066,1747267855503,-687.82,0.00012266,2]
[361115067,1747267855513,-1038.42,0.00012266,2]
[361115068,1747267855522,-417.03245272,0.00012266,2]
[361115069,1747267855546,-314.80754728,0.00012266,2]
[361115070,1747267855555,-497.78,0.00012266,2]
[361115071,1747267855565,-1408.43,0.00012266,2]
[361115072,1747267855575,-400.0,0.00012266,2]
[361115073,1747267855584,-400.0,0.00012266,2]
[361115074,1747267855594,-516.45,0.00012266,2]
[361115075,1747267855604,-437.18,0.00012266,2]
[361115076,1747267855615,-653.35,0.00012266,2]
[361115077,1747267855625,-438.83,0.00012266,2]
[361115078,1747267855635,-926.49,0.00012266,2]
[361115079,1747267855644,-400.0,0.00012266,2]
[361115080,1747267855654,-1045.83,0.00012266,2]
[361115081,1747267855663,-151.0,0.00012266,2]
[361115082,1747267855672,-400.0,0.00012266,2]
[361115083,1747267855681,-615.96,0.00012266,2]
[361115084,1747267855691,-400.0,0.00012266,2]
[361115085,1747267855700,-400.0,0.00012266,2]
[361115086,1747267855709,-400.0,0.00012266,2]
[361115087,1747267855718,-4151.57497257,0.00012266,2]
[361115088,1747267855730,-18542.0001001,0.00012266,2]
[361115089,1747267855742,-10525.80594087,0.00012266,2]
[361115090,1747267855754,-408.92382811,0.00012266,2]
[361115091,1747267855766,-1127.02490741,0.00012266,2]
[361115092,1747267855777,-1349.628057,0.00012266,2]
[361115093,1747267856105,-2519.79407522,0.00012266,2]
[361115094,1747267856116,-13421.97811872,0.00012266,2]
[361115095,1747267856125,-400.0,0.00012266,2]
[361115096,1747267856134,-849.37,0.00012266,2]
[361115097,1747267856143,-1367.68,0.00012266,2]
[361115098,1747267856152,-693.51,0.00012266,2]
[361115099,1747267856162,-1934.57,0.00012266,2]
[361115100,1747267856171,-845.32,0.00012266,2]
[361115101,1747267856180,-922.27,0.00012266,2]
[361115102,1747267856189,-150.0,0.00012267,2]
[361115103,1747267856198,-49.88264477,0.00012267,2]
[361115104,1747267856210,-8885.62735523,0.00012267,2]
[361115105,1747267856219,-400.0,0.00012267,2]
[361115106,1747267856228,-151.0,0.00012267,2]
[361115107,1747267856238,-151.0,0.00012267,2]
[361115108,1747267856247,-151.0,0.00012267,2]
[361115109,1747267856255,-151.0,0.00012267,2]
[361115110,1747267856265,-10000.0,0.00012267,2]
[361115111,1747267856274,-10000.0,0.00012267,2]
[361115112,1747267856283,-10000.0,0.00012267,2]
[361115113,1747267856292,-151.0,0.00012267,2]
[361115114,1747267856301,-151.0,0.00012267,2]
[361115115,1747267856309,-400.0,0.00012268,2]
[361115116,1747267856318,-557.04,0.00012268,2]
[361115117,1747267856327,-400.0,0.00012268,2]
[361115118,1747267856336,-492.6,0.00012268,2]
[361115119,1747267856345,-589.97,0.00012268,2]
[361115120,1747267856355,-400.0,0.00012268,2]
[361115121,1747267856365,-400.0,0.00012268,2]
[361115122,1747267856375,-400.0,0.00012268,2]
[361115123,1747267856384,-400.0,0.00012268,2]
[361115124,1747267856394,-683.42,0.00012268,2]
[361115125,1747267856404,-400.0,0.00012268,2]
[361115126,1747267856413,-400.0,0.00012268,2]
[361115127,1747267856423,-400.0,0.00012268,2]
[361115128,1747267856432,-400.0,0.00012268,2]
[361115129,1747267856442,-492.21,0.00012268,2]
[361115130,1747267856452,-731.41,0.00012268,2]
[361115131,1747267856461,-400.0,0.00012268,2]
[361115132,1747267856471,-440.97,0.00012268,2]
[361115133,1747267856480,-400.0,0.00012268,2]
[361115134,1747267856490,-418.07,0.00012268,2]
[361115135,1747267856499,-400.0,0.00012268,2]
[361115136,1747267856509,-400.0,0.00012268,2]
[361115137,1747267856519,-572.24,0.00012268,2]
[361115138,1747267856529,-400.0,0.00012268,2]
[361115139,1747267856539,-400.0,0.00012268,2]
[361115140,1747267856551,-519.17,0.00012268,2]
[361115141,1747267856562,-262.55972747,0.00012268,2]
[361115142,1747267856583,-137.44027253,0.00012268,2]
[361115143,1747267856593,-400.0,0.00012268,2]
[361115144,1747267856604,-400.0,0.00012268,2]
[361115145,1747267856613,-367.01115637,0.00012268,2]
[361115146,1747267856625,-32.98884363,0.00012268,2]
[361115147,1747267856635,-660.43,0.00012268,2]
[361115148,1747267856644,-400.0,0.00012268,2]
[361115149,1747267856653,-171.02164167,0.00012268,2]
[361115150,1747267856663,-400.0,0.00012268,2]
[361115151,1747267856672,-400.0,0.00012268,2]
[361115152,1747267856681,-400.0,0.00012268,2]
[361115153,1747267856691,-124.3095147,0.00012268,2]
[361115154,1747267857097,-1045.82147877,0.00011717,2]
[361115155,1747267857107,-1045.82147877,0.00011718,2]
[361115156,1747267857116,-275.6904853,0.00012268,2]
[361115157,1747267857125,-400.0,0.00012268,2]
[361115158,1747267857135,-483.16,0.00012268,2]
[361115159,1747267857144,-655.42125977,0.00012268,2]
[361115160,1747267857155,-38.53874023,0.00012268,2]
[361115161,1747267857164,-1462.12,0.00012268,2]
[361115162,1747267857174,-400.0,0.00012268,2]
[361115163,1747267857184,-487.92,0.00012268,2]
[361115164,1747267857194,-400.0,0.00012268,2]
[361115165,1747267857203,-264.38041198,0.00012268,2]
[361115166,1747267857221,-373.47958802,0.00012268,2]
[361115167,1747267857230,-465.94,0.00012268,2]
[361115168,1747267857239,-633.19,0.00012268,2]
[361115169,1747267857249,-400.0,0.00012268,2]
[361115170,1747267857259,-400.0,0.00012268,2]
[361115171,1747267857268,-470.82,0.00012268,2]
[361115172,1747267857278,-525.9,0.00012268,2]
[361115173,1747267857287,-436.4,0.00012268,2]
[361115174,1747267857297,-400.0,0.00012268,2]
[361115175,1747267857311,-466.9,0.00012268,2]
[361115176,1747267857532,-151.0,0.00012268,2]
[361115177,1747267857547,-1090.44,0.00012268,2]
[361115178,1747267857556,-922.84,0.00012268,2]